[Event "WYCC 2018 O14"]
[Site "Halkidiki"]
[Date "2018.10.29"]
[Round "10"]
[White "Tengis, Tsog-Ochir"]
[Black "Pogosyan, Stefan"]
[Result "1/2-1/2"]
[ECO "A45"]
[WhiteElo "2205"]
[BlackElo "2373"]
[Annotator "NA"]
[PlyCount "108"]
[EventDate "2018.10.20"]
[EventType "swiss"]
[EventCountry "GRE"]
[SourceTitle "playchess.com"]
[Source "ChessBase"]
[SourceQuality "1"]
[TimeControl "40/5400+30:1800+30"]

1. d4 {[%emt 0:00:00]} Nf6 {[%emt 0:00:00]} 2. g3 {[%emt 0:00:00]} c5 {[%emt 0:00:00]} 3. c3 {[%emt 0:00:00]} d5 {[%emt 0:00:04] A45: Trompowsky Attack} (3... e6 4. Bg2 d5 5. Nf3 Be7 6. O-O O-O 7. b3 b6 8. Bb2 Bb7 9. Nbd2 Nc6 10. c4 cxd4 11. Nxd4 Nxd4 12. Bxd4 Rc8 13. Rc1 {1-0 (78) Stupak,K (2578)-Jones,G (2662) Heraklio 2017}) 4. Bg2 {[%emt 0:00:00]} Bf5 {[%emt 0:00:27]} 5. Nf3 {[%emt 0:00:00]} e6 {[%emt 0:00:08]} 6. O-O {[%emt 0:00:00]} Nc6 {[%emt 0:00:13]} 7. Ne5 {[%emt 0:01:40]} Qb6 {[%emt 0:00:41]} 8. e3 $146 {[%emt 0:01:16]} ({Predecessor:} 8. Nxc6 bxc6 9. Qa4 Bd6 10. Nd2 cxd4 11. cxd4 O-O 12. Nf3 h6 13. Be3 Rfc8 {0-1 (79) Nguyen,H (1673)-Nguyen,H (2047) Hanoi 2014}) 8... Bd6 {[%emt 0:01:47]} 9. f4 {[%emt 0:01:15]} Rc8 {[%emt 0:04:40]} 10. g4 {[%emt 0:02:12]} Be4 {[%emt 0:02:36]} 11. Nd2 {[%emt 0:00:05]} cxd4 {[%emt 0:10:38]} 12. exd4 {[%emt 0:02:34]} Nxe5 {[%emt 0:18:25]} 13. fxe5 {[%emt 0:00:28]} Bxe5 {[%emt 0:00:07]} 14. g5 {[%emt 0:01:01] [#]} Bxd4+ $1 {[%emt 0:00:49]} 15. cxd4 {[%emt 0:05:34]} Qxd4+ {[%emt 0:00:50]} 16. Kh1 {[%emt 0:00:40]} Bxg2+ {[%emt 0:02:07]} 17. Kxg2 {[%emt 0:00:02]} Ne4 {[%emt 0:10:07]} 18. Nxe4 {[%emt 0:02:01]} Qxe4+ {[%emt 0:00:07]} 19. Qf3 {[%emt 0:00:02]} Qg6 {[%emt 0:07:05]} 20. h4 {[%emt 0:00:23]} Rc2+ {[%emt 0:02:58]} 21. Kg3 {[%emt 0:00:30]} h5 {[%emt 0:02:16]} 22. Bf4 {[%emt 0:06:24]} O-O {[%emt 0:00:51]} 23. Rac1 {[%emt 0:01:29]} Rfc8 {[%emt 0:02:33]} 24. Rxc2 {[%emt 0:00:54]} Rxc2 {[%emt 0:00:12]} 25. Rf2 {[%emt 0:00:48]} Rxf2 {[%emt 0:08:20]} 26. Qxf2 {[%emt 0:00:38]} Qd3+ {[%emt 0:01:14]} 27. Qe3 $11 {[%emt 0:01:14]} Qb1 {[%emt 0:00:32]} 28. Be5 {[%emt 0:00:16]} Qxa2 {[%emt 0:06:50]} 29. Bc3 {[%emt 0:34:11]} Qb1 {[%emt 0:03:25]} 30. Qd4 {[%emt 0:01:12]} Qg6 {[%emt 0:00:24]} 31. Kf4 {[%emt 0:00:29]} Qf5+ {[%emt 0:03:35]} 32. Ke3 {[%emt 0:00:04]} Qh3+ {[%emt 0:00:12]} 33. Kd2 {[%emt 0:01:14]} Qg2+ {[%emt 0:00:28]} 34. Kc1 {[%emt 0:02:13]} Qf1+ {[%emt 0:00:07]} 35. Kc2 {[%emt 0:00:04]} Qe2+ {[%emt 0:00:06]} 36. Kb3 {[%emt 0:00:16]} Qb5+ {[%emt 0:00:08]} 37. Ka3 {[%emt 0:00:05]} Qa6+ {[%emt 0:01:05]} 38. Kb4 {[%emt 0:00:09]} Qd6+ {[%emt 0:02:02]} 39. Kb3 {[%emt 0:00:14]} e5 {[%emt 0:07:13]} 40. Qxe5 {[%emt 0:00:00]} Qxe5 {[%emt 0:00:00]} 41. Bxe5 {[%emt 0:00:29]} Kh7 {[%emt 0:02:09]} 42. Kc3 {[%emt 0:02:35]} Kg6 {[%emt 0:02:12]} 43. Kd4 {[%emt 0:01:35]} f6 {[%emt 0:01:23]} 44. gxf6 {[%emt 0:00:44]} gxf6 {[%emt 0:00:01]} 45. Bg3 {[%emt 0:00:17]} Kf5 {[%emt 0:00:45]} 46. Kxd5 {[%emt 0:00:08]} Kg4 {[%emt 0:00:27]} 47. Bf2 {[%emt 0:00:04]} a5 {[%emt 0:07:34]} 48. Ke6 {[%emt 0:01:02]} f5 {[%emt 0:01:57]} 49. Be1 {[%emt 0:02:19]} a4 {[%emt 0:01:10]} 50. Ke5 {[%emt 0:02:44]} f4 {[%emt 0:02:13]} 51. Ke4 {[%emt 0:35:15]} b5 {[%emt 0:06:35]} 52. Kd4 {[%emt 0:09:11]} Kf3 {[%emt 0:00:49]} 53. Bd2 {[%emt 0:00:38]} Kg3 {[%emt 0:00:42]} 54. Be1+ {[%emt 0:01:03]} Kf3 {[%emt 0:00:06]} 1/2-1/2

[Event "WYCC 2018 O14"]
[Site "Halkidiki"]
[Date "2018.10.29"]
[Round "10"]
[White "Fecker, Noah"]
[Black "Gavriil, Odysseas-Panagiotis"]
[Result "0-1"]
[ECO "A05"]
[WhiteElo "2184"]
[BlackElo "2009"]
[Annotator "NA"]
[PlyCount "146"]
[EventDate "2018.10.20"]
[EventType "swiss"]
[EventCountry "GRE"]
[SourceTitle "playchess.com"]
[Source "ChessBase"]
[SourceQuality "1"]
[TimeControl "40/5400+30:1800+30"]

1. Nf3 {[%emt 0:00:00]} Nf6 {[%emt 0:00:20]} 2. c4 {[%emt 0:00:00]} g6 {[%emt 0:00:30]} 3. g3 {[%emt 0:00:00]} Bg7 {[%emt 0:00:17]} 4. Bg2 {[%emt 0:00:00]} O-O {[%emt 0:00:30]} 5. O-O {[%emt 0:00:00]} d6 {[%emt 0:00:32]} 6. Nc3 {[%emt 0:00:06]} e5 {[%emt 0:00:38]} 7. d3 {[%emt 0:01:02]} Re8 {[%emt 0:02:09]} 8. Bg5 {[%emt 0:04:29]} h6 {[%emt 0:01:30]} 9. Bxf6 {[%emt 0:00:25]} Bxf6 {[%emt 0:00:29]} 10. Rb1 {[%emt 0:01:31] A24: English Opening vs King's Indian: Lines without ...Nc6} c6 {[%emt 0:01:16]} 11. b4 {[%emt 0:03:01]} Be6 {[%emt 0:03:00]} (11... Bg7 12. b5 c5 13. Nd2 f5 14. Nd5 Kh7 15. a4 Nd7 16. e4 Nf8 17. Nb3 {1-0 (51) Pavlidis,A (2532)-Rakhmanov,A (2667) Tallinn 2016}) 12. Nd2 {[%emt 0:12:47] LiveBook: 3 Partien} Nd7 {[%emt 0:03:01]} 13. b5 {[%emt 0:04:03]} Qc7 {[%emt 0:04:05]} 14. Qc1 $146 {[%emt 0:15:41]} ({Predecessor:} 14. Qc2 Rec8 15. Rfc1 Qd8 16. Qd1 Be7 17. Rc2 {½-½ (54) Deepan Chakkravarthy,J (2396)-Koneru,H (2503) Visakhapatnam 2004}) 14... Be7 {[%emt 0:03:55]} 15. Qb2 {[%emt 0:02:06]} Nc5 16. Rfc1 {[%emt 0:04:10]} Qd7 {[%emt 0:09:14]} 17. Nb3 {[%emt 0:03:47]} Nxb3 {[%emt 0:18:36]} 18. Qxb3 {[%emt 0:00:29]} Red8 {[%emt 0:03:14]} 19. bxc6 {[%emt 0:13:24]} bxc6 {[%emt 0:00:08]} 20. Qb7 {[%emt 0:00:26]} Rac8 {[%emt 0:00:16]} 21. Qxd7 {[%emt 0:09:10]} Rxd7 {[%emt 0:00:23]} 22. e4 {[%emt 0:03:07]} Bd8 {[%emt 0:01:20]} 23. Na4 {[%emt 0:00:35]} Kg7 {[%emt 0:00:57]} 24. Rb2 {[%emt 0:02:49]} Be7 {[%emt 0:02:52]} 25. Nc3 {[%emt 0:01:23]} d5 {[%emt 0:06:28]} 26. exd5 {[%emt 0:05:22]} cxd5 {[%emt 0:00:25]} 27. cxd5 {[%emt 0:00:41]} Bxd5 {[%emt 0:18:50]} 28. Bxd5 {[%emt 0:00:08]} Rxd5 {[%emt 0:00:54]} 29. Nxd5 {[%emt 0:00:12]} Rxc1+ {[%emt 0:00:05]} 30. Kg2 {[%emt 0:00:02]} Bc5 {[%emt 0:00:36]} 31. Re2 {[%emt 0:02:43]} Bd4 {[%emt 0:01:03]} 32. f4 {[%emt 0:00:27]} Rc5 {[%emt 0:02:10]} 33. Nb4 {[%emt 0:01:11]} exf4 {[%emt 0:06:19]} 34. gxf4 {[%emt 0:00:16]} g5 {[%emt 0:00:31]} 35. fxg5 {[%emt 0:01:00]} hxg5 {[%emt 0:00:35]} 36. Kf3 {[%emt 0:00:26]} Kg6 {[%emt 0:01:38]} 37. Nc2 {[%emt 0:00:52]} Rf5+ {[%emt 0:01:46]} 38. Kg2 {[%emt 0:00:17]} Bc5 {[%emt 0:01:24]} 39. d4 {[%emt 0:01:14]} Bb6 {[%emt 0:01:16]} 40. Rd2 {[%emt 0:00:00]} Rf4 {[%emt 0:00:00]} 41. d5 {[%emt 0:09:06]} Kf6 {[%emt 0:12:06]} 42. d6 {[%emt 0:06:51]} Ke6 {[%emt 0:04:08]} 43. d7 {[%emt 0:10:58]} Ke7 {[%emt 0:00:08]} 44. a3 {[%emt 0:01:30]} a5 {[%emt 0:04:44]} 45. Ne3 {[%emt 0:07:23]} Kd8 {[%emt 0:00:22]} 46. Nd5 {[%emt 0:01:06]} Rd4 {[%emt 0:00:10]} 47. Rb2 {[%emt 0:00:08]} Rxd5 {[%emt 0:00:37]} 48. Rxb6 {[%emt 0:00:02]} Kxd7 {[%emt 0:00:14]} 49. Kg3 {[%emt 0:01:39]} Ke7 {[%emt 0:01:43]} 50. Kg4 {[%emt 0:00:38]} f6 {[%emt 0:00:56]} 51. Rb3 {[%emt 0:02:01]} Ke6 {[%emt 0:00:25]} 52. Re3+ {[%emt 0:00:29]} Re5 {[%emt 0:00:22]} 53. Rd3 {[%emt 0:00:04]} Re2 {[%emt 0:01:05]} 54. h3 {[%emt 0:00:14]} Ke5 {[%emt 0:01:26]} 55. Rb3 {[%emt 0:00:22]} Re4+ {[%emt 0:00:13]} 56. Kf3 {[%emt 0:00:02]} Rf4+ {[%emt 0:00:52]} 57. Kg3 {[%emt 0:00:16]} a4 {[%emt 0:00:36]} 58. Rb5+ {[%emt 0:00:11]} Kd4 {[%emt 0:02:29]} 59. Rb4+ {[%emt 0:00:07]} Ke3 {[%emt 0:00:27]} 60. Rb6 {[%emt 0:00:47]} Ke2 {[%emt 0:02:51]} 61. Re6+ {[%emt 0:00:05]} Kd3 {[%emt 0:01:22]} 62. Rc6 {[%emt 0:00:15]} Kd4 {[%emt 0:01:09]} 63. Kg2 {[%emt 0:00:32]} Ke5 {[%emt 0:00:42]} 64. Kg3 {[%emt 0:00:04]} Rd4 {[%emt 0:00:21]} 65. Rc3 {[%emt 0:00:07]} f5 {[%emt 0:00:24]} 66. Kf3 {[%emt 0:00:21]} Rf4+ {[%emt 0:01:25]} 67. Kg3 {[%emt 0:00:11]} Ke4 {[%emt 0:01:33]} 68. Rc4+ {[%emt 0:00:17]} Ke3 {[%emt 0:00:12]} 69. Rc5 {[%emt 0:00:21]} Rf3+ {[%emt 0:01:48]} 70. Kg2 {[%emt 0:00:01]} g4 {[%emt 0:00:37]} 71. hxg4 {[%emt 0:00:16]} fxg4 {[%emt 0:00:07]} 72. Ra5 $19 {[%emt 0:01:54]} Rf4 {[%emt 0:00:22]} 73. Kg3 {[%emt 0:00:03]} Rd4 {[%emt 0:00:20]} 0-1

[Event "WYCC 2018 O14"]
[Site "Halkidiki"]
[Date "2018.10.29"]
[Round "10"]
[White "Vitenberg, Noam Aviv"]
[Black "Nguyen, Huynh Minh Thien"]
[Result "0-1"]
[ECO "A05"]
[WhiteElo "2175"]
[BlackElo "1996"]
[Annotator "NA"]
[PlyCount "146"]
[EventDate "2018.10.20"]
[EventType "swiss"]
[EventCountry "GRE"]
[SourceTitle "playchess.com"]
[Source "ChessBase"]
[SourceQuality "1"]
[TimeControl "40/5400+30:1800+30"]

1. Nf3 {[%emt 0:00:00]} Nf6 {[%emt 0:00:00]} 2. c4 {[%emt 0:00:00]} g6 {[%emt 0:00:03]} 3. Nc3 {[%emt 0:00:00]} d5 {[%emt 0:00:10]} 4. cxd5 {[%emt 0:00:00]} Nxd5 {[%emt 0:00:03]} 5. e4 {[%emt 0:00:00]} Nxc3 {[%emt 0:00:11]} 6. dxc3 {[%emt 0:00:00]} Qxd1+ {[%emt 0:00:41]} 7. Kxd1 {[%emt 0:00:04]} f6 {[%emt 0:01:12]} 8. Be3 {[%emt 0:00:08]} e5 {[%emt 0:00:07]} 9. Nd2 {[%emt 0:00:43]} Be6 {[%emt 0:04:43]} 10. Bc4 {[%emt 0:00:09]} Bxc4 {[%emt 0:06:15]} 11. Nxc4 {[%emt 0:00:29]} Nd7 {[%emt 0:00:17]} 12. b4 {[%emt 0:02:40]} b5 {[%emt 0:07:33]} 13. Na5 {[%emt 0:01:41]} c5 {[%emt 0:01:03]} 14. a3 {[%emt 0:09:49]} Rc8 {[%emt 0:05:37]} 15. Ke2 {[%emt 0:02:54]} Nb6 {[%emt 0:00:11]} 16. Rhd1 {[%emt 0:01:56]} Na4 {[%emt 0:00:31]} 17. Rac1 {[%emt 0:04:47]} Be7 {[%emt 0:08:26]} 18. Kf3 {[%emt 0:01:51]} a6 {[%emt 0:04:30]} 19. Nb7 {[%emt 0:04:39]} O-O {[%emt 0:16:20]} 20. Bh6 {[%emt 0:17:11]} Rf7 {[%emt 0:05:06]} 21. Nd6 {[%emt 0:05:23]} Bxd6 {[%emt 0:00:04]} 22. Rxd6 {[%emt 0:00:10]} f5 {[%emt 0:02:00]} 23. Rxa6 {[%emt 0:13:21]} fxe4+ {[%emt 0:00:14]} 24. Ke3 {[%emt 0:00:53]} Rf5 {[%emt 0:02:39]} 25. Ke2 {[%emt 0:15:31]} Nb2 {[%emt 0:03:39]} 26. Be3 {[%emt 0:07:51]} Nd3 {[%emt 0:01:37]} 27. Rd1 {[%emt 0:00:50]} cxb4 {[%emt 0:01:35]} 28. cxb4 {[%emt 0:00:43]} Nxf2 {[%emt 0:08:06]} 29. Bxf2 {[%emt 0:01:11]} Rc2+ {[%emt 0:00:04]} 30. Ke3 {[%emt 0:02:14]} Rfxf2 {[%emt 0:00:52]} 31. Kxe4 {[%emt 0:00:23]} Rfe2+ {[%emt 0:07:18]} 32. Kd5 {[%emt 0:00:58]} Rcd2+ {[%emt 0:00:43]} 33. Rxd2 {[%emt 0:00:34]} Rxd2+ {[%emt 0:00:02]} 34. Kxe5 {[%emt 0:04:22]} Rxg2 {[%emt 0:00:03]} 35. h4 {[%emt 0:01:50]} Kg7 {[%emt 0:05:08]} 36. Ra5 {[%emt 0:00:41]} Rf2 {[%emt 0:02:42]} 37. Ke4 {[%emt 0:01:40]} Rf5 {[%emt 0:00:27]} 38. Ra7+ {[%emt 0:00:21]} Kh6 {[%emt 0:01:33]} 39. Rb7 {[%emt 0:00:34]} Rh5 {[%emt 0:00:01]} 40. Kf3 {[%emt 0:00:00]} Rxh4 {[%emt 0:00:00]} 41. Kg3 {[%emt 0:04:24]} Rc4 {[%emt 0:03:56]} 42. Ra7 {[%emt 0:08:08]} g5 {[%emt 0:02:27]} 43. Rb7 {[%emt 0:01:58]} Kg6 {[%emt 0:00:09]} 44. Rxb5 {[%emt 0:03:34]} Rc3+ {[%emt 0:00:06]} 45. Kf2 {[%emt 0:00:21]} Rxa3 {[%emt 0:00:04]} 46. Rb8 {[%emt 0:00:21]} h5 {[%emt 0:01:12]} 47. b5 {[%emt 0:00:31]} Kf5 {[%emt 0:00:15]} 48. Rc8 {[%emt 0:01:41]} Rb3 {[%emt 0:01:49]} 49. Rc5+ {[%emt 0:01:48]} Kg4 {[%emt 0:00:02]} 50. Kg2 {[%emt 0:03:22]} Rb2+ {[%emt 0:00:18]} 51. Kg1 {[%emt 0:00:04]} h4 {[%emt 0:02:15]} 52. Kh1 {[%emt 0:01:23]} h3 {[%emt 0:00:20]} 53. Kg1 {[%emt 0:00:38]} Kh4 {[%emt 0:00:08]} 54. Kh1 {[%emt 0:05:45]} g4 {[%emt 0:00:16]} 55. Rc4 {[%emt 0:00:43]} Rxb5 {[%emt 0:00:09]} 56. Kg1 {[%emt 0:00:11]} Rb2 {[%emt 0:00:13]} 57. Kh1 {[%emt 0:00:08]} Ra2 {[%emt 0:01:28]} 58. Rb4 {[%emt 0:00:14]} Re2 {[%emt 0:00:03]} 59. Ra4 {[%emt 0:01:29]} Kg3 {[%emt 0:00:06]} 60. Ra1 {[%emt 0:00:27]} Kf2 {[%emt 0:02:32]} 61. Kh2 {[%emt 0:01:02]} Kf3+ {[%emt 0:00:03]} 62. Kg1 {[%emt 0:00:19]} Kg3 {[%emt 0:03:23]} 63. Kh1 {[%emt 0:00:44]} Re3 {[%emt 0:02:29]} 64. Rb1 {[%emt 0:00:55]} Re4 {[%emt 0:04:12]} 65. Ra1 {[%emt 0:01:20]} Kh4 {[%emt 0:01:35]} 66. Kg1 {[%emt 0:00:14]} Rb4 {[%emt 0:00:16]} 67. Kh1 {[%emt 0:00:35]} g3 {[%emt 0:01:03]} 68. Rc1 {[%emt 0:00:12]} h2 {[%emt 0:00:40]} 69. Kg2 {[%emt 0:01:15]} Rb2+ {[%emt 0:00:04]} 70. Kf3 {[%emt 0:00:32]} g2 {[%emt 0:01:14]} 71. Rc4+ {[%emt 0:00:22]} Kh3 {[%emt 0:00:33]} 72. Rc5 {[%emt 0:00:19]} Rf2+ {[%emt 0:00:30]} 73. Kxf2 {[%emt 0:00:05]} g1=Q+ {[%emt 0:00:06]} 0-1

[Event "WYCC 2018 O14"]
[Site "Halkidiki"]
[Date "2018.10.29"]
[Round "10"]
[White "Juhasz, Agoston"]
[Black "Tsay, Vincent"]
[Result "0-1"]
[ECO "B40"]
[WhiteElo "2174"]
[BlackElo "2310"]
[Annotator "NA"]
[PlyCount "112"]
[EventDate "2018.10.20"]
[EventType "swiss"]
[EventCountry "GRE"]
[SourceTitle "playchess.com"]
[Source "ChessBase"]
[SourceQuality "1"]
[TimeControl "40/5400+30:1800+30"]

1. e4 {[%emt 0:00:00]} c5 {[%emt 0:00:00]} 2. Nf3 {[%emt 0:00:00]} e6 {[%emt 0:00:00]} 3. g3 {[%emt 0:00:05]} Nc6 {[%emt 0:01:33]} 4. Bg2 {[%emt 0:00:19]} d5 {[%emt 0:00:05]} 5. exd5 {[%emt 0:00:14]} exd5 {[%emt 0:00:06]} 6. d4 {[%emt 0:00:19]} Nf6 {[%emt 0:00:11]} 7. O-O {[%emt 0:00:29]} Be7 {[%emt 0:01:00]} 8. Nc3 {[%emt 0:02:00]} O-O {[%emt 0:02:42]} 9. dxc5 {[%emt 0:00:47]} Bxc5 {[%emt 0:02:33]} 10. a3 {[%emt 0:01:44] LiveBook: 11 Games B40: Sicilian: 2...e6, Unusual lines} a6 {[%emt 0:10:12]} 11. b4 {[%emt 0:11:55]} Be7 {[%emt 0:03:59]} 12. h3 $146 {[%emt 0:14:25]} ({Predecessor:} 12. Bb2 Bf5 13. Nd4 Bg6 14. Re1 Re8 15. Nb3 d4 16. Ne2 d3 17. cxd3 Qxd3 18. Qxd3 Bxd3 {1-0 (53) Illescas Cordoba,M (2608)-Suarez Garcia,C (2321) Linares 2013}) 12... Be6 {[%emt 0:08:09]} 13. Be3 {[%emt 0:02:03]} b5 {[%emt 0:07:40]} 14. Nd4 {[%emt 0:06:29]} Rc8 {[%emt 0:03:20]} 15. Nxc6 {[%emt 0:02:08]} Rxc6 {[%emt 0:02:16]} 16. Ne2 {[%emt 0:01:31]} Qc8 {[%emt 0:09:57]} 17. Nd4 {[%emt 0:02:07]} Rc4 {[%emt 0:01:50]} 18. Kh2 {[%emt 0:03:44]} (18. Nxe6 $11 fxe6 19. Re1) 18... Bd6 {[%emt 0:03:55]} 19. Rc1 {[%emt 0:13:58]} h6 {[%emt 0:09:40]} 20. Nb3 {[%emt 0:05:11]} Bxh3 {[%emt 0:03:31]} 21. Bd4 {[%emt 0:03:10]} Ng4+ {[%emt 0:02:54]} 22. Kg1 {[%emt 0:00:26]} Bxg2 {[%emt 0:00:39]} 23. Kxg2 {[%emt 0:00:03]} Re8 {[%emt 0:07:51]} 24. Bc5 {[%emt 0:01:42]} Bxc5 {[%emt 0:03:28]} 25. Nxc5 {[%emt 0:00:10]} Qf5 {[%emt 0:03:24]} 26. Qd3 {[%emt 0:03:49]} g6 {[%emt 0:07:15]} 27. Nxa6 {[%emt 0:10:16]} Ra8 {[%emt 0:01:09]} 28. Qxf5 {[%emt 0:01:42]} gxf5 {[%emt 0:00:04]} 29. Nc5 {[%emt 0:00:06]} Rxa3 {[%emt 0:00:09]} 30. Nd3 {[%emt 0:00:31]} Rac3 {[%emt 0:00:29]} 31. Rfd1 {[%emt 0:09:31]} Rxc2 {[%emt 0:00:31]} 32. Rxc2 {[%emt 0:00:46]} Rxc2 {[%emt 0:00:05]} 33. Kf1 {[%emt 0:00:06]} d4 {[%emt 0:01:51]} 34. Ke1 {[%emt 0:00:08]} Kg7 {[%emt 0:01:55]} 35. Rc1 {[%emt 0:01:31]} Rxc1+ {[%emt 0:00:34]} 36. Nxc1 {[%emt 0:00:01]} Kf6 {[%emt 0:00:01]} 37. f3 {[%emt 0:01:37]} Ne3 {[%emt 0:00:40]} 38. Ke2 {[%emt 0:00:59]} Ke5 {[%emt 0:01:46]} 39. Kd3 {[%emt 0:02:47]} Nd1 {[%emt 0:01:20]} 40. Nb3 {[%emt 0:00:00]} Nf2+ {[%emt 0:00:00]} 41. Ke2 {[%emt 0:01:16]} Nh1 {[%emt 0:03:38]} 42. Kd3 {[%emt 0:07:37]} Nxg3 {[%emt 0:00:11]} 43. Nxd4 {[%emt 0:00:16]} h5 {[%emt 0:00:41]} 44. Nxb5 {[%emt 0:15:13]} h4 {[%emt 0:01:23]} 45. Nc3 {[%emt 0:01:11]} h3 {[%emt 0:00:19]} 46. Nd1 {[%emt 0:00:14]} h2 {[%emt 0:00:04]} 47. Nf2 {[%emt 0:00:13]} Kf4 {[%emt 0:00:41]} 48. Kd2 {[%emt 0:06:41]} Kxf3 {[%emt 0:01:21]} 49. Ke1 {[%emt 0:00:09]} Kf4 {[%emt 0:04:09]} 50. b5 {[%emt 0:01:05]} Ke5 {[%emt 0:00:19]} 51. Kd1 {[%emt 0:01:00]} Kd5 {[%emt 0:00:52]} 52. Kc2 {[%emt 0:00:25]} h1=Q {[%emt 0:01:02]} 53. Nxh1 {[%emt 0:00:04]} Nxh1 {[%emt 0:00:07]} 54. Kd3 {[%emt 0:01:21]} Ng3 {[%emt 0:00:12]} 55. b6 $19 {[%emt 0:01:13]} Kc6 {[%emt 0:00:04]} 56. Ke3 {[%emt 0:00:06]} Nh5 {[%emt 0:00:07]} 0-1

[Event "WYCC 2018 O14"]
[Site "Halkidiki"]
[Date "2018.10.29"]
[Round "10"]
[White "Lopez Varela, Pablo"]
[Black "Chatzieleftheriou, Andreas"]
[Result "0-1"]
[ECO "C02"]
[WhiteElo "2172"]
[BlackElo "1984"]
[Annotator "NA"]
[PlyCount "50"]
[EventDate "2018.10.20"]
[EventType "swiss"]
[EventCountry "GRE"]
[SourceTitle "playchess.com"]
[Source "ChessBase"]
[SourceQuality "1"]
[TimeControl "40/5400+30:1800+30"]

1. e4 {[%emt 0:00:00]} e6 {[%emt 0:00:00]} 2. d4 {[%emt 0:00:00]} d5 {[%emt 0:00:00]} 3. e5 {[%emt 0:00:00]} c5 {[%emt 0:00:00]} 4. c3 {[%emt 0:00:00]} Nc6 {[%emt 0:00:03]} 5. Nf3 {[%emt 0:00:00]} Bd7 {[%emt 0:00:11]} 6. Bd3 {[%emt 0:01:13]} Rc8 {[%emt 0:00:50]} 7. dxc5 {[%emt 0:04:07]} Bxc5 {[%emt 0:00:19]} 8. O-O {[%emt 0:00:08]} Nge7 {[%emt 0:01:20]} 9. Qe2 {[%emt 0:04:42]} Ng6 {[%emt 0:01:59]} 10. Re1 {[%emt 0:02:00]} O-O {[%emt 0:02:55]} 11. h4 {[%emt 0:06:35]} f6 $15 {[%emt 0:09:01]} ({Much worse is} 11... Nxh4 $6 {[#]} 12. Bxh7+ $1 {[%mdl 512]} Kxh7 13. Ng5+ Kg6 14. Qg4 $14) 12. exf6 {[%emt 0:01:06]} Qxf6 {[%emt 0:03:27]} 13. Bg5 {[%emt 0:08:24]} Qf7 {[%emt 0:04:18]} 14. Qc2 e5 15. h5 {[%emt 0:09:34]} e4 {[%emt 0:01:26]} 16. hxg6 {[%emt 0:00:49]} Qxg6 {[%emt 0:02:00]} 17. Qb3 {[%emt 0:10:01]} Rxf3 {[%emt 0:34:00]} 18. Bxe4 {[%emt 0:20:09]} Bxf2+ {[%emt 0:01:25]} 19. Kf1 {[%emt 0:00:07]} Rf5 {[%emt 0:09:05]} 20. Rd1 {[%emt 0:14:05]} Bb6+ {[%emt 0:05:07]} 21. Bf3 {[%emt 0:02:21]} Rxf3+ {[%emt 0:00:05]} 22. gxf3 {[%emt 0:00:07]} Bh3+ {[%emt 0:00:11]} 23. Ke2 {[%emt 0:00:52]} Re8+ {[%emt 0:00:09]} 24. Be3 {[%emt 0:00:25]} Qg2+ {[%emt 0:01:02]} 25. Kd3 {[%emt 0:00:41]} Rxe3# {[%emt 0:00:07] Kd4} 0-1

[Event "WYCC 2018 O14"]
[Site "Halkidiki"]
[Date "2018.10.29"]
[Round "10"]
[White "Srihari L R"]
[Black "Dardha, Daniel"]
[Result "1/2-1/2"]
[ECO "A01"]
[WhiteElo "2170"]
[BlackElo "2316"]
[Annotator "NA"]
[PlyCount "104"]
[EventDate "2018.10.20"]
[EventType "swiss"]
[EventCountry "GRE"]
[SourceTitle "playchess.com"]
[Source "ChessBase"]
[SourceQuality "1"]
[TimeControl "40/5400+30:1800+30"]

1. b3 {[%emt 0:00:06]} d5 {[%emt 0:02:15]} 2. Bb2 {[%emt 0:01:38]} Nf6 {[%emt 0:00:05]} 3. e3 {[%emt 0:00:25]} c5 {[%emt 0:00:58]} 4. Nf3 {[%emt 0:03:07]} Nc6 {[%emt 0:00:09]} 5. Bb5 {[%emt 0:03:41] LiveBook: 195 Games} Bd7 {[%emt 0:01:20]} 6. O-O {[%emt 0:02:15]} e6 {[%emt 0:00:49]} 7. d4 {[%emt 0:01:02] A06: Réti Opening:1 Nf3 d5} (7. Bxc6 Bxc6 8. Ne5 Rc8 9. d3 Nd7 10. Nxc6 Rxc6 11. Nd2 Nf6 12. f4 Bd6 13. Nf3 O-O 14. Ne5 Bxe5 15. fxe5 {½-½ (44) Aronian,L (2764)-Vachier Lagrave,M (2789) Paris 2018}) 7... Be7 {[%emt 0:01:42]} 8. Nbd2 {[%emt 0:02:07]} O-O {[%emt 0:00:08]} 9. a3 {[%emt 0:02:40]} Nxd4 {[%emt 0:10:07]} 10. Nxd4 {[%emt 0:01:00]} cxd4 {[%emt 0:00:07]} 11. Bxd7 $146 {[%emt 0:01:05]} ({Predecessor:} 11. Bd3 dxe3 12. fxe3 Ne8 13. e4 dxe4 14. Nxe4 f5 {0-1 (31) Abdijapar,A-Tologontegin,S (2355) Bishkek 2010}) 11... dxe3 {[%emt 0:01:32]} 12. Bb5 {[%emt 0:00:48]} exd2 {[%emt 0:00:17]} 13. Qxd2 {[%emt 0:00:00]} Ne4 {[%emt 0:01:46]} 14. Qe2 {[%emt 0:00:52]} Bf6 {[%emt 0:00:38]} 15. Bxf6 {[%emt 0:04:06]} Qxf6 {[%emt 0:00:43]} 16. Qe3 {[%emt 0:00:44]} Nc3 {[%emt 0:06:45]} 17. Bd3 {[%emt 0:00:14]} d4 {[%emt 0:00:12]} 18. Qd2 {[%emt 0:00:52]} e5 {[%emt 0:01:31]} 19. Rfe1 {[%emt 0:00:22]} Rfe8 {[%emt 0:00:31]} 20. f3 {[%emt 0:01:00]} Rad8 {[%emt 0:01:55]} 21. a4 {[%emt 0:01:12]} g6 {[%emt 0:10:34]} 22. Rf1 {[%emt 0:11:48]} Kg7 {[%emt 0:00:17]} 23. Rae1 {[%emt 0:00:19]} Qd6 {[%emt 0:02:33]} 24. g4 $19 {[%emt 0:09:15]} Nd5 {[%emt 0:02:54]} 25. Kh1 {[%emt 0:03:29]} Nf4 {[%emt 0:14:42]} 26. Bc4 {[%emt 0:18:51]} f6 {[%emt 0:07:30]} 27. Re4 {[%emt 0:04:05]} Nd5 {[%emt 0:09:33]} 28. Bxd5 {[%emt 0:06:03]} Qxd5 {[%emt 0:00:03]} 29. Rfe1 {[%emt 0:00:08]} h6 {[%emt 0:07:25]} 30. h3 {[%emt 0:00:56]} Qc6 {[%emt 0:00:22]} 31. Qd3 {[%emt 0:08:44]} Rc8 {[%emt 0:00:47]} 32. R4e2 {[%emt 0:01:07]} Qc3 {[%emt 0:05:26]} 33. Qe4 {[%emt 0:00:08]} Qc6 {[%emt 0:00:06]} 34. Qd3 {[%emt 0:00:09]} Qa6 {[%emt 0:05:23]} 35. Qxa6 {[%emt 0:08:39]} bxa6 {[%emt 0:00:01]} 36. f4 {[%emt 0:00:11]} Rc5 {[%emt 0:01:33]} 37. b4 {[%emt 0:02:35]} Rc4 {[%emt 0:01:53]} 38. fxe5 {[%emt 0:00:06]} Rxe5 {[%emt 0:00:05]} 39. Rxe5 {[%emt 0:00:05]} fxe5 {[%emt 0:00:04]} 40. Rxe5 {[%emt 0:00:00]} Rxc2 {[%emt 0:00:00]} 41. Rd5 {[%emt 0:03:51]} Rd2 {[%emt 0:19:42]} 42. Kg1 {[%emt 0:09:47]} Kf6 {[%emt 0:07:05]} 43. Kf1 {[%emt 0:00:21]} Ke6 {[%emt 0:01:43]} 44. Ra5 {[%emt 0:00:13]} Rh2 {[%emt 0:02:09]} 45. Rxa6+ {[%emt 0:01:23]} Kd5 {[%emt 0:00:02]} 46. Rxa7 {[%emt 0:02:43]} Kc4 {[%emt 0:00:27]} 47. b5 {[%emt 0:00:09]} d3 {[%emt 0:00:27]} 48. Ke1 {[%emt 0:01:17]} d2+ {[%emt 0:01:11]} 49. Kd1 {[%emt 0:00:05]} Kd3 {[%emt 0:00:04]} 50. Rd7+ {[%emt 0:00:03]} Kc3 {[%emt 0:00:19]} 51. Rc7+ {[%emt 0:00:04]} Kd3 {[%emt 0:00:06]} 52. Rd7+ {[%emt 0:00:03]} Kc3 {[%emt 0:00:05]} 1/2-1/2